fUSD/lending_fUSD_20250505
["ID","MTS","AMOUNT","RATE_DAILY","PERIOD"]
[360012014,1746478257062,-450.0,0.00019999,2]
[360012016,1746478257070,-450.0,0.00019999,2]
[360012018,1746478257079,-267.0,0.00019999,2]
[360012020,1746478257088,-450.0,0.00019999,2]
[360012022,1746478257097,-590.65,0.00019999,2]
[360012024,1746478257106,-151.0,0.00019999,2]
[360012026,1746478257115,-151.0,0.00019999,2]
[360012028,1746478257125,-150.0,0.00019999,2]
[360012030,1746478257134,-151.0,0.00019999,2]
[360012032,1746478257143,-151.0,0.00019999,2]
[360012034,1746478257152,-151.0,0.00019999,2]
[360012036,1746478257161,-151.0,0.00019999,2]
[360012038,1746478257170,-1466.79,0.00019999,2]
[360012040,1746478257181,-1466.79,0.00019999,2]
[360012042,1746478257190,-1466.79,0.00019999,2]
[360012044,1746478257200,-1466.79,0.00019999,2]
[360012046,1746478257211,-1466.79,0.00019999,2]
[360012048,1746478257221,-1466.79,0.00019999,2]
[360012050,1746478257230,-1466.79,0.00019999,2]
[360012052,1746478257239,-1466.79,0.00019999,2]
[360012054,1746478257249,-1466.79,0.00019999,2]
[360012056,1746478257258,-1466.79,0.00019999,2]
[360012058,1746478257267,-1466.79,0.00019999,2]
[360012060,1746478257277,-1466.79,0.00019999,2]
[360012062,1746478257286,-1466.79,0.00019999,2]
[360012064,1746478257296,-1466.79,0.00019999,2]
[360012066,1746478257305,-1466.79,0.00019999,2]
[360012068,1746478257314,-1466.79,0.00019999,2]
[360012070,1746478257323,-1466.79,0.00019999,2]
[360012072,1746478257333,-1466.79,0.00019999,2]
[360012074,1746478257342,-1466.79,0.00019999,2]
[360012076,1746478257351,-1466.79,0.00019999,2]
[360012078,1746478257360,-1466.93000002,0.00019999,2]
[360012080,1746478257369,-151.0,0.00019999,2]
[360012082,1746478257379,-506.56,0.00019999,2]
[360012084,1746478257389,-485.11,0.00019999,2]
[360012085,1746478257398,-485.11,0.00019999,2]
[360012088,1746478257408,-485.11,0.00019999,2]
[360012090,1746478257418,-485.11,0.00019999,2]
[360012092,1746478257427,-485.11,0.00019999,2]
[360012094,1746478257439,-485.11,0.00019999,2]
[360012096,1746478257448,-485.11,0.00019999,2]
[360012098,1746478257459,-485.11,0.00019999,2]
[360012100,1746478257468,-485.11,0.00019999,2]
[360012102,1746478257477,-485.11,0.00019999,2]
[360012104,1746478257487,-485.11,0.00019999,2]
[360012106,1746478257496,-152.573775,0.00019999,2]
[360012108,1746478257506,-485.11,0.00019999,2]
[360012110,1746478257515,-485.11,0.00019999,2]
[360012112,1746478257524,-485.11,0.00019999,2]
[360012114,1746478257534,-485.11,0.00019999,2]
[360012116,1746478257543,-485.11,0.00019999,2]
[360012118,1746478257552,-485.11,0.00019999,2]
[360012120,1746478257561,-485.11,0.00019999,2]
[360012122,1746478257571,-485.11,0.00019999,2]
[360012124,1746478257580,-485.11,0.00019999,2]
[360012126,1746478257590,-485.22,0.00019999,2]
[360012128,1746478257600,-450.0,0.00019999,2]
[360012130,1746478257609,-450.0,0.00019999,2]
[360012132,1746478257618,-151.0,0.00019999,2]
[360012134,1746478257627,-450.0,0.00019999,2]
[360012135,1746478257637,-450.0,0.00019999,2]
[360012137,1746478257646,-450.0,0.00019999,2]
[360012140,1746478257656,-151.0,0.00019999,2]
[360012141,1746478257665,-450.0,0.00019999,2]
[360012143,1746478257675,-450.0,0.00019999,2]
[360012145,1746478257684,-450.0,0.00019999,2]
[360012147,1746478257693,-503.28,0.00019999,2]
[360012149,1746478257702,-151.0,0.00019999,2]
[360012151,1746478257712,-151.0,0.00019999,2]
[360012153,1746478257721,-151.0,0.00019999,2]
[360012155,1746478257730,-210.723357,0.00019999,2]
[360012157,1746478257740,-13227.21,0.00019999,2]
[360012159,1746478257749,-13227.21,0.00019999,2]
[360012161,1746478257759,-13227.21,0.00019999,2]
[360012163,1746478257768,-13227.21,0.00019999,2]
[360012165,1746478257777,-13227.21,0.00019999,2]
[360012167,1746478257787,-13227.21,0.00019999,2]
[360012169,1746478257796,-13227.21,0.00019999,2]
[360012171,1746478257805,-13227.21,0.00019999,2]
[360012173,1746478257815,-13227.21,0.00019999,2]
[360012175,1746478257824,-13227.21,0.00019999,2]
[360012177,1746478257834,-13227.21,0.00019999,2]
[360012179,1746478257843,-13227.21,0.00019999,2]
[360012181,1746478257853,-13227.21,0.00019999,2]
[360012183,1746478257863,-13227.21,0.00019999,2]
[360012185,1746478257872,-13227.21,0.00019999,2]
[360012187,1746478257882,-13227.21,0.00019999,2]
[360012189,1746478257891,-13227.21,0.00019999,2]
[360012191,1746478257901,-13227.3984,0.00019999,2]
[360012193,1746478257910,-151.0,0.00019999,2]
[360012195,1746478257920,-151.0,0.00019999,2]
[360012197,1746478257929,-450.0,0.00019999,2]
[360012199,1746478257939,-450.0,0.00019999,2]
[360012201,1746478257949,-450.0,0.00019999,2]
[360012204,1746478257962,-450.0,0.00019999,2]
[360012205,1746478257972,-450.0,0.00019999,2]
[360012208,1746478257982,-450.0,0.00019999,2]
[360012210,1746478257992,-453.85,0.00019999,2]
[360012212,1746478258002,-151.0,0.00019999,2]
[360012213,1746478258011,-151.0,0.00019999,2]
[360012216,1746478258021,-450.0,0.00019999,2]
[360012218,1746478258031,-231.17,0.00019999,2]
[360012220,1746478258040,-269.42,0.00019999,2]
[360012222,1746478258050,-151.0,0.00019999,2]
[360012224,1746478258060,-151.0,0.00019999,2]
[360012226,1746478258069,-450.0,0.00019999,2]
[360012228,1746478258078,-450.0,0.00019999,2]
[360012230,1746478258088,-450.0,0.00019999,2]
[360012232,1746478258097,-450.0,0.00019999,2]
[360012234,1746478258107,-450.0,0.00019999,2]
[360012236,1746478258116,-450.0,0.00019999,2]
[360012238,1746478258125,-450.0,0.00019999,2]
[360012240,1746478258135,-450.0,0.00019999,2]
[360012242,1746478258145,-450.0,0.00019999,2]
[360012244,1746478258155,-450.0,0.00019999,2]
[360012246,1746478258164,-450.0,0.00019999,2]
[360012248,1746478258174,-450.0,0.00019999,2]
[360012260,1746478258273,-335.9,0.00019999,2]
[360012262,1746478258283,-151.0,0.00019999,2]
[360012264,1746478258293,-450.0,0.00019999,2]
[360012266,1746478258302,-450.0,0.00019999,2]
[360012268,1746478258312,-151.0,0.00019999,2]
[360012270,1746478258321,-450.0,0.00019999,2]
[360012272,1746478258331,-450.0,0.00019999,2]
[360012274,1746478258340,-450.0,0.00019999,2]
[360012276,1746478258350,-450.0,0.00019999,2]
[360012278,1746478258359,-205.82,0.00019999,2]
[360012280,1746478258368,-151.0,0.00019999,2]
[360012282,1746478258378,-151.0,0.00019999,2]
[360012284,1746478258387,-151.0,0.00019999,2]
[360012286,1746478258396,-151.0,0.00019999,2]
[360012288,1746478258406,-450.0,0.00019999,2]
[360012290,1746478258415,-160.92,0.00019999,2]
[360012292,1746478258425,-151.0,0.00019999,2]
[360012293,1746478258434,-609.21,0.00019999,2]
[360012294,1746478258443,-609.21,0.00019999,2]
[360012295,1746478258452,-151.0,0.00019999,2]
[360012296,1746478258461,-609.21,0.00019999,2]
[360012297,1746478258471,-609.21,0.00019999,2]
[360012298,1746478258479,-609.21,0.00019999,2]
[360012299,1746478258488,-609.21,0.00019999,2]
[360012300,1746478258497,-609.21,0.00019999,2]
[360012301,1746478258507,-609.21,0.00019999,2]
[360012302,1746478258516,-609.21,0.00019999,2]
[360012303,1746478258525,-609.21,0.00019999,2]
[360012304,1746478258534,-609.21,0.00019999,2]
[360012305,1746478258543,-609.21,0.00019999,2]
[360012307,1746478258553,-609.21,0.00019999,2]
[360012309,1746478258563,-609.21,0.00019999,2]
[360012311,1746478258572,-609.21,0.00019999,2]
[360012313,1746478258581,-450.0,0.00019999,2]
[360012315,1746478258591,-609.21,0.00019999,2]
[360012317,1746478258600,-609.21,0.00019999,2]
[360012319,1746478258611,-450.0,0.00019999,2]
[360012321,1746478258620,-609.4,0.00019999,2]
[360012323,1746478258629,-450.0,0.00019999,2]
[360012325,1746478258638,-450.0,0.00019999,2]
[360012327,1746478258648,-298.408113,0.00019999,2]
[360012329,1746478258657,-385.04,0.00019999,2]
[360012331,1746478258666,-1104.59,0.00019999,2]
[360012333,1746478258676,-1104.59,0.00019999,2]
[360012335,1746478258685,-1104.59,0.00019999,2]
[360012337,1746478258695,-151.0,0.00019999,2]
[360012339,1746478258705,-1104.59,0.00019999,2]
[360012341,1746478258716,-1104.59,0.00019999,2]
[360012343,1746478258726,-1104.59,0.00019999,2]
[360012345,1746478258735,-1104.59,0.00019999,2]
[360012347,1746478258744,-1104.59,0.00019999,2]
[360012349,1746478258754,-1104.59,0.00019999,2]
[360012351,1746478258763,-1104.59,0.00019999,2]
[360012353,1746478258773,-1104.59,0.00019999,2]
[360012355,1746478258782,-1104.59,0.00019999,2]
[360012357,1746478258791,-1104.59,0.00019999,2]
[360012359,1746478258801,-1104.59,0.00019999,2]
[360012361,1746478258811,-1104.59,0.00019999,2]
[360012363,1746478258820,-298.408113,0.00019999,2]
[360012365,1746478258830,-1104.59,0.00019999,2]
[360012367,1746478258839,-1104.80616671,0.00019999,2]
[360012369,1746478258848,-151.0,0.00019999,2]
[360012371,1746478258858,-151.0,0.00019999,2]
[360012373,1746478258867,-450.0,0.00019999,2]
[360012375,1746478258876,-151.0,0.00019999,2]
[360012377,1746478258886,-450.0,0.00019999,2]
[360012379,1746478258896,-450.0,0.00019999,2]
[360012381,1746478258906,-255.330348,0.00019999,2]
[360012383,1746478258915,-291.79326743,0.00019999,2]
[360012385,1746478258925,-151.0,0.00019999,2]
[360012387,1746478258935,-151.0,0.00019999,2]
[360012389,1746478258944,-450.0,0.00019999,2]
[360012391,1746478258956,-450.0,0.00019999,2]
[360012393,1746478258970,-151.0,0.00019999,2]
[360012396,1746478258980,-450.0,0.00019999,2]
[360012398,1746478258989,-151.0,0.00019999,2]
[360012400,1746478258999,-450.0,0.00019999,2]
[360012401,1746478259009,-151.0,0.00019999,2]
[360012404,1746478259019,-151.0,0.00019999,2]
[360012405,1746478259029,-450.0,0.00019999,2]
[360012408,1746478259040,-450.0,0.00019999,2]
[360012410,1746478259050,-450.0,0.00019999,2]
[360012412,1746478259060,-450.0,0.00019999,2]
[360012414,1746478259069,-457.745,0.00019999,2]
[360012416,1746478259082,-200.0,0.00019999,2]
[360012419,1746478259098,-150.0,0.00019999,2]
[360012421,1746478259111,-151.0,0.00019999,2]
[360012424,1746478259128,-151.0,0.00019999,2]
[360012426,1746478259143,-250.0,0.00019999,2]
[360012429,1746478259158,-151.0,0.00019999,2]
[360012431,1746478259170,-150.0,0.00019999,2]
[360012434,1746478259187,-150.0,0.00019999,2]
[360012436,1746478259202,-560.45,0.00019999,2]
[360012439,1746478259218,-560.45,0.00019999,2]
[360012442,1746478259233,-560.45,0.00019999,2]
[360012445,1746478259249,-560.45,0.00019999,2]
[360012447,1746478259266,-560.45,0.00019999,2]
[360012450,1746478259280,-560.45,0.00019999,2]
[360012452,1746478259294,-560.45,0.00019999,2]
[360012455,1746478259311,-560.45,0.00019999,2]
[360012457,1746478259325,-560.45,0.00019999,2]
[360012460,1746478259337,-560.45,0.00019999,2]
[360012462,1746478259349,-560.45,0.00019999,2]
[360012465,1746478259364,-560.45,0.00019999,2]
[360012467,1746478259378,-560.45,0.00019999,2]
[360012469,1746478259388,-560.45,0.00019999,2]
[360012471,1746478259401,-560.45,0.00019999,2]
[360012474,1746478259415,-560.45,0.00019999,2]
[360012476,1746478259428,-560.45,0.00019999,2]
[360012478,1746478259439,-560.61,0.00019999,2]
[360012481,1746478259453,-200.0,0.00019999,2]
[360012483,1746478259466,-483.703431,0.00019999,2]
[360012485,1746478259478,-483.703431,0.00019999,2]
[360012488,1746478259492,-483.703431,0.00019999,2]
[360012490,1746478259504,-742.57,0.00019999,2]
[360012492,1746478259516,-483.703431,0.00019999,2]
[360012495,1746478259529,-742.57,0.00019999,2]
[360012497,1746478259541,-742.57,0.00019999,2]
[360012499,1746478259553,-742.57,0.00019999,2]
[360012502,1746478259565,-742.57,0.00019999,2]
[360012504,1746478259577,-742.57,0.00019999,2]
[360012506,1746478259589,-742.57,0.00019999,2]
[360012508,1746478259602,-742.57,0.00019999,2]
[360012511,1746478259615,-742.57,0.00019999,2]
[360012513,1746478259627,-742.57,0.00019999,2]
[360012515,1746478259639,-742.57,0.00019999,2]
[360012518,1746478259653,-742.57,0.00019999,2]
[360012520,1746478259666,-742.57,0.00019999,2]
[360012522,1746478259678,-742.57,0.00019999,2]
[360012525,1746478259691,-742.57,0.00019999,2]
[360012527,1746478259704,-450.0,0.00019999,2]
[360012529,1746478259716,-742.57,0.00019999,2]
[360012532,1746478259729,-450.0,0.00019999,2]
[360012534,1746478259742,-450.0,0.00019999,2]
[360012536,1746478259755,-450.0,0.00019999,2]
[360012539,1746478259767,-450.0,0.00019999,2]
[360012541,1746478259780,-450.0,0.00019999,2]
[360012543,1746478259792,-742.57,0.00019999,2]
[360012546,1746478259805,-450.0,0.00019999,2]
[360012548,1746478259818,-742.6450063,0.00019999,2]
[360012550,1746478259831,-450.0,0.00019999,2]
[360012553,1746478259843,-450.0,0.00019999,2]
[360012555,1746478259857,-450.0,0.00019999,2]
[360012558,1746478259869,-450.0,0.00019999,2]
[360012560,1746478259883,-450.0,0.00019999,2]
[360012563,1746478259898,-450.0,0.00019999,2]
[360012565,1746478259911,-783.79,0.00019999,2]
[360012567,1746478259924,-783.79,0.00019999,2]
[360012570,1746478259938,-536.21,0.00019999,2]
[360012572,1746478259950,-783.79,0.00019999,2]
[360012574,1746478259968,-783.79,0.00019999,2]
[360012577,1746478259981,-783.79,0.00019999,2]
[360012579,1746478259994,-783.79,0.00019999,2]
[360012581,1746478260007,-37636.88448524,0.0002,2]
[360012584,1746478260021,-34179.1959193,0.0002,2]
[360012586,1746478260035,-875.27919828,0.0002,2]
[360012588,1746478260049,-713823.80788636,0.0002,2]
[360012638,1746478260501,-450.51159251,0.00019896,2]
[360012640,1746478260510,-739.31272282,0.00019999,2]
[360012642,1746478260522,-44.47727718,0.00019999,2]
[360012644,1746478260531,-407.9699535,0.0002,2]
[360012646,1746478260543,-1520.9355887,0.0002,2]
[360012829,1746478262399,-38826.92964482,0.0002,2]
[360012832,1746478262421,-450.0,0.00019897,2]
[360012834,1746478262431,-783.79,0.00019999,2]
[360012836,1746478262440,-1860.58765954,0.0002,2]
[360012850,1746478262569,-767.24766906,0.00019732,2]
[360012878,1746478262818,-571.26332778,0.00019732,2]
[360012881,1746478262831,-867.4232749,0.00019732,2]
[360012883,1746478262842,-586.95008794,0.00019732,2]
[360012885,1746478262858,-4362.29840756,0.00019732,2]
[360012887,1746478262873,-4714.39513276,0.00019732,2]
[360012890,1746478262883,-1889.60486724,0.00019889,2]
[360012892,1746478262895,-2763.55269684,0.00019889,2]
[360012894,1746478262905,-490.0,0.00019898,2]
[360012896,1746478262915,-242.42785495,0.00019898,2]
[360012898,1746478262924,-783.79,0.00019999,2]
[360012900,1746478262934,-783.79,0.00019999,2]
[360012902,1746478262945,-783.79,0.00019999,2]
[360012904,1746478262954,-783.79,0.00019999,2]
[360012906,1746478262969,-783.79,0.00019999,2]
[360012908,1746478262979,-325.06048321,0.00019999,2]
[360012910,1746478262990,-458.72951679,0.00019999,2]
[360012912,1746478263000,-783.79,0.00019999,2]
[360012914,1746478263011,-783.79,0.00019999,2]
[360012916,1746478263021,-783.79,0.00019999,2]
[360012918,1746478263030,-783.80407919,0.00019999,2]
[360012920,1746478263039,-10872.84640402,0.0002,2]
[360012922,1746478263051,-802.12841788,0.0002,2]
[360014219,1746478395852,1207.28309445,0.0003,30]
[360014220,1746478515762,500.0,0.0003013,120]
[360014221,1746478530643,634.61,0.00017098,2]
[360014222,1746478530840,634.61,0.00019362,2]
[360014223,1746478562369,166.78,0.00015212,2]
[360014224,1746478592245,156.01,0.00019016,2]
[360014225,1746478750727,250.0,0.00017,2]
[360014226,1746478751806,300.0,0.00019,2]
[360014227,1746478825125,173.77,0.00019178,2]
[360014230,1746478933305,1000.0,0.00019016,2]
[360014319,1746479431889,-2027.76,0.00019684,2]
[360014320,1746479431900,-600.7752,0.00019684,2]
[360014321,1746479431910,-200.0,0.00019685,2]
[360014322,1746479431919,-97.68577204,0.00019687,2]
[360014323,1746479431945,-53.31422796,0.00019687,2]
[360014324,1746479431955,-200.0,0.00019687,2]
[360014325,1746479431964,-363.0,0.00019695,2]
[360014326,1746479431973,-73.99621349,0.00019696,2]
[360014327,1746479432003,-690.00378651,0.00019696,2]
[360014328,1746479432013,-1200.0,0.00019696,2]
[360014329,1746479432022,-300.0,0.00019696,2]
[360014330,1746479432032,-3964.85315469,0.00019697,2]
[360014481,1746479437806,-22842.65014531,0.00019697,2]
[360014482,1746479437816,-2400.6568,0.00019697,2]
[360014483,1746479437825,-1589.6522,0.00019697,2]
[360014484,1746479437835,-177.67420211,0.00019697,2]
[360014485,1746479437845,-200.0,0.000197,2]
[360014486,1746479437855,-6667.99907103,0.00019766,2]
[360014487,1746479437865,-500.0,0.00019773,2]
[360014488,1746479437874,-500.0,0.00019773,2]
[360014489,1746479437885,-207.4,0.00019774,2]
[360014490,1746479437895,-150.99,0.00019776,2]
[360014491,1746479437905,-4007.67,0.00019776,2]
[360014492,1746479437914,-3817.27648122,0.00019776,2]
[360014493,1746479437935,-282.6119774,0.00019776,2]
[360014669,1746479440011,-5900.10154138,0.00019776,2]
[360014671,1746479440021,-1539.07,0.00019776,2]
[360014673,1746479440030,-6887.85,0.00019776,2]
[360014675,1746479440039,-1971.0,0.00019776,5]
[360014677,1746479440048,-202.77856878,0.00019781,2]
[360014678,1746479440057,-500.0,0.00019781,2]
[360014681,1746479440067,-500.0,0.00019781,2]
[360014682,1746479440077,-171.52436247,0.00019781,2]
[360014684,1746479440086,-500.0,0.00019781,2]
[360014687,1746479440096,-500.0,0.00019781,2]
[360014689,1746479440107,-500.0,0.00019781,2]
[360014691,1746479440117,-500.0,0.00019781,2]
[360014693,1746479440127,-500.0,0.00019781,2]
[360014695,1746479440137,-500.0,0.00019781,2]
[360014697,1746479440146,-500.0,0.00019781,2]
[360014699,1746479440155,-500.0,0.00019781,2]
[360014701,1746479440164,-500.0,0.00019781,2]
[360014703,1746479440174,-500.0,0.00019781,2]
[360014705,1746479440183,-500.0,0.00019781,2]
[360014707,1746479440193,-500.0,0.00019781,2]
[360014708,1746479440203,-500.0,0.00019781,2]
[360014711,1746479440213,-500.0,0.00019781,2]
[360014712,1746479440222,-500.0,0.00019781,2]
[360014714,1746479440232,-500.0,0.00019781,2]
[360014716,1746479440241,-500.0,0.00019781,2]
[360014718,1746479440251,-500.0,0.00019781,2]
[360014720,1746479440261,-500.0,0.00019781,2]
[360014722,1746479440270,-500.0,0.00019781,2]
[360014724,1746479440280,-500.0,0.00019781,2]
[360014726,1746479440290,-500.0,0.00019781,2]
[360014728,1746479440299,-500.0,0.00019781,2]
[360014730,1746479440308,-500.0,0.00019781,2]
[360014732,1746479440318,-500.0,0.00019781,2]
[360014734,1746479440327,-500.0,0.00019781,2]
[360014736,1746479440336,-500.0,0.00019781,2]
[360014738,1746479440346,-500.0,0.00019781,2]
[360014740,1746479440355,-500.0,0.00019781,2]
[360014742,1746479440364,-500.0,0.00019781,2]
[360014744,1746479440374,-500.0,0.00019781,2]
[360014746,1746479440383,-500.0,0.00019781,2]
[360014748,1746479440392,-500.0,0.00019781,2]
[360014750,1746479440402,-500.0,0.00019781,2]
[360014752,1746479440411,-500.0,0.00019781,2]
[360014754,1746479440420,-500.0,0.00019781,2]
[360014756,1746479440430,-500.0,0.00019781,2]
[360014758,1746479440439,-500.0,0.00019781,2]
[360014760,1746479440448,-500.0,0.00019781,2]
[360014762,1746479440457,-594.16889816,0.00019781,2]
[360014764,1746479440466,-500.0,0.00019781,2]
[360014766,1746479440476,-999.99,0.00019785,2]
[360014768,1746479440489,-150.99,0.00019785,2]
[360014770,1746479440499,-9353.24,0.00019785,2]
[360014772,1746479440507,-9999.99,0.00019785,2]
[360014774,1746479440516,-4860.72,0.00019785,2]
[360014776,1746479440526,-9999.99,0.00019785,2]
[360014778,1746479440536,-299.99,0.00019785,7]
[360014780,1746479440545,-151.0,0.00019785,2]
[360014781,1746479440557,-151.0,0.00019785,2]
[360014783,1746479440566,-668.65185757,0.00019785,2]
[360014786,1746479440576,-868.08,0.00019787,2]
[360014788,1746479440586,-1227.12899652,0.00019795,2]
[360014790,1746479440596,-450.0,0.00019796,2]
[360014792,1746479440605,-450.0,0.00019796,2]
[360014793,1746479440615,-450.0,0.00019796,2]
[360014795,1746479440624,-450.0,0.00019796,2]
[360014798,1746479440634,-450.0,0.00019796,2]
[360014799,1746479440643,-450.0,0.00019796,2]
[360014801,1746479440652,-476.49,0.00019796,2]
[360014803,1746479440662,-450.0,0.00019796,2]
[360014805,1746479440671,-450.0,0.00019796,2]
[360014807,1746479440680,-450.0,0.00019796,2]
[360014809,1746479440690,-450.0,0.00019796,2]
[360014811,1746479440699,-450.0,0.00019796,2]
[360014813,1746479440708,-450.0,0.00019796,2]
[360014815,1746479440718,-450.0,0.00019796,2]
[360014817,1746479440727,-450.0,0.00019796,2]
[360014819,1746479440736,-450.0,0.00019796,2]
[360014821,1746479440745,-450.0,0.00019796,2]
[360014823,1746479440754,-450.0,0.00019796,2]
[360014825,1746479440764,-450.0,0.00019796,2]
[360014827,1746479440773,-450.0,0.00019796,2]
[360014829,1746479440782,-450.0,0.00019796,2]
[360014831,1746479440791,-450.0,0.00019796,2]
[360014833,1746479440801,-450.0,0.00019796,2]
[360014835,1746479440810,-450.0,0.00019796,2]
[360014837,1746479440819,-450.0,0.00019796,2]
[360014839,1746479440829,-450.0,0.00019796,2]
[360014841,1746479440839,-450.0,0.00019796,2]
[360014843,1746479440848,-582.61,0.00019796,2]
[360014845,1746479440858,-450.0,0.00019796,2]
[360014847,1746479440867,-628.67,0.00019796,2]
[360014849,1746479440876,-450.0,0.00019796,2]
[360014851,1746479440885,-514.0,0.00019796,2]
[360014853,1746479440894,-450.0,0.00019796,2]
[360014855,1746479440904,-450.0,0.00019796,2]
[360014857,1746479440913,-450.0,0.00019796,2]
[360014859,1746479440922,-450.0,0.00019796,2]
[360014861,1746479440931,-450.0,0.00019796,2]
[360014863,1746479440941,-450.0,0.00019796,2]
[360014865,1746479440949,-662.16,0.00019796,2]
[360014866,1746479440959,-450.0,0.00019796,2]
[360014867,1746479440967,-450.0,0.00019796,2]
[360014868,1746479440976,-169.49996,0.00019796,2]
[360014869,1746479440986,-168.82302286,0.00019796,2]
[360014870,1746479440995,-203.372984,0.00019796,2]
[360014872,1746479441004,-450.0,0.00019796,2]
[360014874,1746479441013,-450.0,0.00019796,2]
[360014876,1746479441023,-450.0,0.00019796,2]
[360014878,1746479441032,-450.0,0.00019796,2]
[360014880,1746479441041,-450.0,0.00019796,2]
[360014882,1746479441050,-388.949689,0.00019796,2]
[360014884,1746479441059,-189.763312,0.00019796,2]
[360014885,1746479441068,-318.61895525,0.00019796,2]
[360014888,1746479441078,-450.0,0.00019796,2]
[360014889,1746479441087,-450.0,0.00019796,2]
[360014891,1746479441096,-450.0,0.00019796,2]
[360014893,1746479441105,-450.0,0.00019796,2]
[360014895,1746479441114,-500.0,0.00019796,2]
[360014897,1746479441124,-450.0,0.00019796,2]
[360014899,1746479441133,-450.0,0.00019796,2]
[360014901,1746479441143,-404.32921075,0.00019796,2]
[360014903,1746479441152,-450.0,0.00019796,2]
[360014905,1746479441161,-136341.4138,0.00019797,2]
[360014907,1746479441171,-154.17118557,0.00019797,2]
[360014909,1746479441180,-1030.387019,0.00019799,2]
[360014911,1746479441190,-1227.12899647,0.00019807,2]
[360014913,1746479441199,-154.17118552,0.00019812,2]
[360014915,1746479441208,-1227.12899647,0.00019818,2]
[360014917,1746479441218,-154.17118552,0.00019826,2]
[360014919,1746479441227,-1227.12899647,0.0001983,2]
[360014921,1746479441236,-154.17118552,0.00019841,2]
[360014923,1746479441246,-1227.12899647,0.00019842,2]
[360014925,1746479441255,-216.3,0.00019842,10]
[360014927,1746479441264,-1227.12899647,0.00019853,2]
[360014929,1746479441273,-2318.99891038,0.00019855,2]
[360014931,1746479441282,-154.17118552,0.00019856,2]
[360014933,1746479441291,-1227.12899647,0.00019865,2]
[360014935,1746479441301,-154.17118552,0.00019871,2]
[360014937,1746479441310,-500.0,0.00019873,2]
[360014939,1746479441320,-500.0,0.00019873,2]
[360014941,1746479441329,-500.0,0.00019873,2]
[360014943,1746479441338,-414.76218888,0.00019873,2]
[360014945,1746479441348,-500.0,0.00019873,2]
[360014947,1746479441357,-611.63853128,0.00019873,2]
[360014949,1746479441366,-1227.12899647,0.00019877,2]
[360014951,1746479441375,-2318.99891038,0.00019877,2]
[360014953,1746479441385,-154.17118552,0.00019885,2]
[360014955,1746479441394,-1227.12899647,0.00019888,2]
[360014957,1746479441403,-500.0,0.00019894,2]
[360014959,1746479441413,-500.0,0.00019894,2]
[360014961,1746479441422,-500.0,0.00019894,2]
[360014963,1746479441432,-500.0,0.00019894,2]
[360014965,1746479441441,-332.37748052,0.00019894,2]
[360014967,1746479441450,-467.62767513,0.00019895,2]
[360014969,1746479441459,-491.31237196,0.00019895,2]
[360014971,1746479441468,-450.0,0.00019895,2]
[360014973,1746479441477,-504.2651379,0.00019895,2]
[360014975,1746479441491,-450.0,0.00019895,2]